fUST/lending_fUST_20260103
["ID","MTS","AMOUNT","RATE_DAILY","PERIOD"]
[400366385,1767443883559,175.38,0.00012096,2]
[400366386,1767443910837,246.33,0.000125,2]
[400366387,1767443927622,871.05685135,0.00012147,2]
[400366388,1767443927646,6576.50229165,0.00012147,2]
[400366389,1767443927753,2420.97983914,0.00012523,2]
[400366390,1767443958583,164.22,0.00011335,2]
[400366391,1767443959049,197.06,0.00011789,2]
[400366392,1767443959462,229.9,0.00012242,2]
[400366394,1767444006813,169.29286,6.136e-05,2]
[400366395,1767444028470,209.97,0.000125,2]
[400366396,1767444030446,151.91,0.00011801,2]
[400366397,1767444030843,177.23,0.00012255,2]
[400366398,1767444089130,245.61,0.000125,2]
[400366399,1767444148822,210.68,0.000125,2]
[400366400,1767444156134,999.0,0.00012177,2]
[400366401,1767444214609,244.91,0.000125,2]
[400366402,1767444246928,495.6543747,0.00012177,2]
[400366403,1767444272064,1812.0279298,0.00012177,2]
[400366405,1767444332565,221.78,0.000125,2]
[400366406,1767444352024,1527.0986922,0.00012275,2]
[400366409,1767444391986,505.22,0.00012329,2]
[400366413,1767444450693,265.28,0.000125,2]
[400366414,1767444572727,264.32,0.000125,2]
[400366440,1767444631792,-524.86494536,0.00012695,2]
[400366443,1767444631804,-75.13505464,0.00012695,2]
[400366445,1767444631814,-319.08702294,0.00012699,2]
[400366447,1767444631823,-264.32,0.000129,2]
[400366448,1767444631833,-169.04,0.00013048,2]
[400366451,1767444631843,-47.05610649,0.000132,2]
[400366474,1767444637816,-217.26389351,0.000132,2]
[400366475,1767444637826,-221.0,0.0001325,2]
[400366476,1767444637836,-1200.0,0.00013267,2]
[400366477,1767444637846,-300.0,0.00013267,2]
[400366478,1767444637856,-50000.0,0.00013268,2]
[400366479,1767444637867,-354.83012444,0.00013271,2]
[400366480,1767444637876,-500.0,0.00013271,2]
[400366481,1767444637886,-500.0,0.00013271,2]
[400366482,1767444637896,-500.0,0.00013271,2]
[400366483,1767444637905,-500.0,0.00013271,2]
[400366484,1767444637915,-500.0,0.00013271,2]
[400366485,1767444637925,-500.0,0.00013271,2]
[400366486,1767444637934,-500.0,0.00013271,2]
[400366487,1767444637944,-500.0,0.00013271,2]
[400366488,1767444637953,-245.07812756,0.00013271,2]
[400366489,1767444637964,-500.0,0.00013271,2]
[400366491,1767444637973,-500.0,0.00013271,2]
[400366493,1767444637982,-500.0,0.00013271,2]
[400366494,1767444637992,-500.0,0.00013271,2]
[400366495,1767444638002,-500.0,0.00013271,2]
[400366496,1767444638011,-500.0,0.00013271,2]
[400366497,1767444638021,-526.31838737,0.00013271,2]
[400366498,1767444638031,-500.0,0.00013271,2]
[400366499,1767444638041,-500.0,0.00013271,2]
[400366500,1767444638052,-500.0,0.00013271,2]
[400366501,1767444638061,-500.0,0.00013271,2]
[400366502,1767444638071,-500.0,0.00013271,2]
[400366503,1767444638082,-500.0,0.00013271,2]
[400366504,1767444638093,-500.0,0.00013273,2]
[400366505,1767444638103,-500.191811,0.00013273,2]
[400366506,1767444638113,-500.0,0.00013273,2]
[400366507,1767444638123,-500.0,0.00013273,2]
[400366508,1767444638132,-441.28107065,0.00013273,2]
[400366509,1767444638142,-500.0,0.00013273,2]
[400366510,1767444638266,-500.0,0.00013273,2]
[400366511,1767444638277,-500.0,0.00013273,2]
[400366512,1767444638287,-500.0,0.00013273,2]
[400366513,1767444638297,-500.0,0.00013273,2]
[400366514,1767444638307,-500.0,0.00013273,2]
[400366515,1767444638316,-500.0,0.00013273,2]
[400366516,1767444638326,-370.97976049,0.00013273,2]
[400366517,1767444638335,-500.0,0.00013273,2]
[400366518,1767444638345,-500.0,0.00013273,2]
[400366519,1767444638356,-500.0,0.00013273,2]
[400366520,1767444638366,-500.0,0.00013273,2]
[400366521,1767444638376,-500.0,0.00013273,2]
[400366522,1767444638387,-264.32,0.000135,2]
[400366523,1767444638396,-190.17,0.00013514,2]
[400366524,1767444638406,-300.0,0.00013673,2]
[400366525,1767444638416,-330.734172,0.00013699,2]
[400366526,1767444638426,-500.0,0.00013699,2]
[400366527,1767444638436,-500.0,0.00013699,2]
[400366528,1767444638447,-500.0,0.00013699,2]
[400366529,1767444638457,-172.99015439,0.00013699,2]
[400366530,1767444638467,-500.0,0.00013699,2]
[400366531,1767444638476,-303.83727218,0.00013699,2]
[400366532,1767444638486,-500.0,0.00013699,2]
[400366533,1767444638496,-500.0,0.00013699,2]
[400366534,1767444638506,-500.0,0.00013699,2]
[400366535,1767444638515,-500.0,0.00013699,2]
[400366536,1767444638524,-500.0,0.00013699,2]
[400366537,1767444638534,-500.0,0.00013699,2]
[400366538,1767444638543,-500.0,0.00013699,2]
[400366539,1767444638558,-500.0,0.00013699,2]
[400366540,1767444638568,-500.0,0.00013699,2]
[400366541,1767444638578,-500.0,0.00013699,2]
[400366542,1767444638588,-535.88655536,0.00013699,2]
[400366543,1767444638597,-576.38948379,0.00013699,2]
[400366544,1767444638607,-500.0,0.00013699,2]
[400366545,1767444638617,-500.0,0.00013699,2]
[400366546,1767444638626,-500.0,0.00013699,2]
[400366547,1767444638636,-500.0,0.00013699,2]
[400366548,1767444638645,-500.0,0.00013699,2]
[400366549,1767444638655,-500.0,0.00013699,2]
[400366550,1767444638665,-500.0,0.00013699,2]
[400366551,1767444638675,-500.0,0.00013699,2]
[400366552,1767444638686,-500.0,0.00013699,2]
[400366553,1767444638695,-1000.0,0.00013821,2]
[400366554,1767444638706,-1000.0,0.00013821,2]
[400366555,1767444638716,-1000.0,0.00013821,2]
[400366556,1767444638725,-1000.0,0.00013821,2]
[400366557,1767444638735,-1000.0,0.00013821,2]
[400366558,1767444638745,-1000.0,0.00013821,2]
[400366559,1767444638755,-1000.0,0.00013821,2]
[400366560,1767444638765,-560.65291273,0.00013821,2]
[400366561,1767444638775,-1000.0,0.00013821,2]
[400366562,1767444638785,-1000.0,0.00013821,2]
[400366563,1767444638794,-1000.0,0.00013821,2]
[400366564,1767444638804,-1000.0,0.00013821,2]
[400366565,1767444638813,-1000.0,0.00013821,2]
[400366566,1767444638823,-1000.0,0.00013821,2]
[400366567,1767444638833,-264.32,0.000139,2]
[400366568,1767444638842,-211.3,0.0001398,2]
[400366569,1767444638853,-1041.66666667,0.00014067,2]
[400366570,1767444638864,-2201.71,0.00014147,2]
[400366571,1767444638874,-953.76304153,0.00014175,2]
[400366572,1767444638884,-264.32,0.000142,2]
[400366573,1767444638894,-737.36429423,0.00014221,2]
[400366574,1767444638904,-500.0,0.00014247,2]
[400366575,1767444638914,-500.0,0.00014247,2]
[400366576,1767444638925,-500.0,0.00014247,2]
[400366577,1767444638935,-500.0,0.00014247,2]
[400366578,1767444638945,-631.64054313,0.00014247,2]
[400366579,1767444638956,-470.94631538,0.00014247,2]
[400366580,1767444638966,-1000.0,0.00014247,2]
[400366581,1767444638976,-500.0,0.00014247,2]
[400366582,1767444638986,-500.0,0.00014247,2]
[400366583,1767444638996,-481.40904469,0.00014247,2]
[400366584,1767444639006,-197.14280947,0.00014247,2]
[400366585,1767444639016,-500.0,0.00014247,2]
[400366586,1767444639026,-500.0,0.00014247,2]
[400366587,1767444639037,-500.0,0.00014247,2]
[400366588,1767444639047,-500.0,0.00014247,2]
[400366589,1767444639057,-281.48970977,0.00014247,2]
[400366590,1767444639067,-500.0,0.00014247,2]
[400366591,1767444639077,-500.0,0.00014247,2]
[400366592,1767444639087,-500.0,0.00014247,2]
[400366593,1767444639097,-500.0,0.00014247,2]
[400366594,1767444639107,-500.0,0.00014247,2]
[400366595,1767444639117,-500.0,0.00014247,2]
[400366596,1767444639127,-1000.0,0.00014247,2]
[400366597,1767444639137,-727.03925796,0.00014268,2]
[400366598,1767444639147,-1000.0,0.00014368,2]
[400366599,1767444639157,-1000.0,0.00014368,2]
[400366600,1767444639167,-1000.0,0.00014368,2]
[400366601,1767444639177,-1000.0,0.00014368,2]
[400366602,1767444639187,-1000.0,0.00014368,2]
[400366603,1767444639197,-1000.0,0.00014368,2]
[400366604,1767444639207,-1000.0,0.00014368,2]
[400366605,1767444639217,-1000.0,0.00014368,2]
[400366606,1767444639227,-1000.0,0.00014368,2]
[400366607,1767444639236,-1000.0,0.00014368,2]
[400366608,1767444639246,-1000.0,0.00014368,2]
[400366609,1767444639255,-1000.0,0.00014368,2]
[400366610,1767444639266,-264.32,0.000145,2]
[400366611,1767444639276,-778.0,0.00014546,2]
[400366612,1767444639285,-420.0,0.00014546,2]
[400366613,1767444639295,-376.52268707,0.00014699,2]
[400366614,1767444639305,-1001.34335094,0.00014795,2]
[400366615,1767444639315,-1500.0,0.00014795,2]
[400366616,1767444639325,-264.32,0.000148,2]
[400366617,1767444639335,-1000.0,0.00015,2]
[400366618,1767444639345,-369.675794,0.00015068,2]
[400366619,1767444639355,-264.32,0.000152,2]
[400366620,1767444639364,-2000.0,0.00015342,2]
[400366621,1767444639374,-1757.52608307,0.00015483,2]
[400366622,1767444639384,-264.32,0.000155,2]
[400366623,1767444639394,-1414.17626476,0.00015604,2]
[400366624,1767444639404,-727.03925795,0.00015676,2]
[400366625,1767444639414,-264.32,0.000158,2]
[400366626,1767444639424,-2500.0,0.0001589,2]
[400366627,1767444639434,-587.0,0.00015948,2]
[400366628,1767444639444,-264.32,0.000162,2]
[400366629,1767444639455,-528.4,0.00016438,2]
[400366630,1767444639465,-164.0102757,0.00016438,2]
[400366631,1767444639475,-3000.0,0.00016438,2]
[400366632,1767444639485,-259.79445274,0.00016438,2]
[400366633,1767444639495,-279.41786474,0.00016473,2]
[400366634,1767444639504,-157.06458157,0.00016493,3]
[400366635,1767444639514,-264.32,0.000165,2]
[400366636,1767444639524,-433.9583512,0.00016699,2]
[400366638,1767444639534,-250.0,0.00016774,2]
[400366639,1767444639543,-2561.2891246,0.0001679,2]
[400366640,1767444639557,-264.32,0.000168,2]
[400366641,1767444639566,-328.0,0.00016887,2]
[400366642,1767444639577,-2000.0,0.000169,2]
[400366643,1767444639587,-2000.0,0.000169,2]
[400366644,1767444639598,-924.535,0.000169,2]
[400366645,1767444639608,-528.4,0.00016944,2]
[400366646,1767444639617,-3500.0,0.00016986,2]
[400366647,1767444639627,-200.0,0.00017041,3]
[400366648,1767444639638,-727.03925795,0.00017084,2]
[400366649,1767444639648,-419.0,0.00017088,2]
[400366650,1767444639658,-264.32,0.000172,2]
[400366651,1767444639668,-498.0,0.00017261,2]
[400366652,1767444639678,-181.0,0.00017425,2]
[400366653,1767444639688,-528.4,0.00017449,2]
[400366654,1767444639697,-823.0,0.00017484,2]
[400366656,1767444639707,-264.32,0.000175,2]
[400366657,1767444639717,-181.0,0.0001751,2]
[400366658,1767444639726,-4000.0,0.00017534,2]
[400366659,1767444639735,-181.0,0.00017573,2]
[400366660,1767444639746,-181.0,0.0001761,2]
[400366661,1767444639756,-181.0,0.00017626,2]
[400366662,1767444639765,-181.0,0.00017697,2]
[400366663,1767444639775,-181.0,0.00017779,2]
[400366664,1767444639784,-264.32,0.000178,2]
[400366665,1767444639794,-528.4,0.00017955,2]
[400366666,1767444639803,-100000.0,0.0001799,2]
[400366668,1767444639812,-181.0,0.00017998,2]
[400366670,1767444639822,-196.0,0.0001806,2]
[400366671,1767444639831,-181.0,0.00018063,2]
[400366672,1767444639840,-717.82865763,0.00018082,2]
[400366673,1767444639850,-3365.05216614,0.00018098,2]
[400366674,1767444639859,-181.0,0.00018116,2]
[400366676,1767444639870,-201.0,0.00018137,3]
[400366678,1767444639879,-181.0,0.00018139,2]
[400366679,1767444639890,-264.32,0.000182,2]
[400366680,1767444639899,-181.0,0.00018225,2]
[400366681,1767444639909,-181.0,0.0001823,2]
[400366682,1767444639919,-181.0,0.0001836,2]
[400366684,1767444639928,-1044.601,0.00018407,2]
[400366685,1767444639938,-628.0,0.00018407,2]
[400366686,1767444639948,-416.0,0.00018407,2]
[400366687,1767444639958,-178.0,0.00018407,2]
[400366688,1767444639968,-528.4,0.00018461,2]
[400366689,1767444639977,-181.0,0.00018482,2]
[400366693,1767444640089,-727.03925795,0.00018492,2]
[400366694,1767444640099,-369.675794,0.00018493,2]
[400366695,1767444640109,-264.32,0.000185,2]
[400366696,1767444640119,-35714.32,0.000185,3]
[400366697,1767444640128,-181.0,0.00018545,2]
[400366698,1767444640138,-181.0,0.0001856,2]
[400366699,1767444640147,-181.0,0.00018587,2]
[400366700,1767444640156,-491.39401533,0.00018699,2]
[400366701,1767444640165,-172.995,0.000187,2]
[400366702,1767444640175,-181.0,0.00018737,2]
[400366703,1767444640185,-30208.4722207,0.000188,2]
[400366704,1767444640194,-264.32,0.000188,2]
[400366705,1767444640203,-303.08788973,0.000189,2]
[400366706,1767444640212,-303.08788973,0.000189,2]
[400366707,1767444640222,-528.4,0.00018966,2]
[400366708,1767444640232,-181.0,0.00018981,2]
[400366709,1767444640242,-181.0,0.00018987,2]
[400366710,1767444640252,-181.0,0.00018994,2]
[400366711,1767444640261,-181.0,0.00019035,2]
[400366712,1767444640271,-303.08788973,0.00019089,2]
[400366713,1767444640280,-303.08788973,0.00019089,2]
[400366714,1767444640290,-181.0,0.00019148,2]
[400366715,1767444640301,-222.0,0.00019169,2]
[400366716,1767444640311,-881.7745,0.00019178,2]
[400366717,1767444640320,-881.7745,0.00019178,2]
[400366718,1767444640330,-881.7745,0.00019178,2]
[400366719,1767444640339,-881.7745,0.00019178,2]
[400366720,1767444640349,-881.7745,0.00019178,2]
[400366721,1767444640359,-881.7745,0.00019178,2]
[400366722,1767444640369,-881.7745,0.00019178,2]
[400366723,1767444640379,-881.7745,0.00019178,2]
[400366724,1767444640389,-881.7745,0.00019178,2]
[400366725,1767444640398,-881.7745,0.00019178,2]
[400366726,1767444640408,-881.7745,0.00019178,2]
[400366727,1767444640418,-881.7745,0.00019178,2]
[400366728,1767444640428,-881.7745,0.00019178,2]
[400366729,1767444640437,-881.7745,0.00019178,2]
[400366730,1767444640448,-881.7745,0.00019178,2]
[400366731,1767444640457,-881.7745,0.00019178,2]
[400366732,1767444640467,-881.7745,0.00019178,2]
[400366733,1767444640476,-250.16,0.000192,2]
[400366734,1767444640486,-253.93,0.000192,2]
[400366735,1767444640495,-2715.16,0.000192,2]
[400366736,1767444640505,-167.67,0.000192,2]
[400366737,1767444640514,-264.32,0.000192,2]
[400366738,1767444640523,-203.0,0.00019233,3]
[400366739,1767444640533,-303.08788973,0.00019278,2]
[400366740,1767444640542,-303.08788973,0.00019278,2]
[400366741,1767444640555,-300.0,0.00019315,2]
[400366742,1767444640565,-587.46816348,0.00019345,5]
[400366743,1767444640575,-4168.81520767,0.00019405,2]
[400366744,1767444640584,-450.0,0.00019452,2]
[400366745,1767444640594,-303.08788973,0.00019467,2]
[400366746,1767444640603,-303.08788973,0.00019467,2]
[400366747,1767444640613,-528.4,0.00019472,2]
[400366748,1767444640622,-264.32,0.000195,2]
[400366749,1767444640631,-600.0,0.00019589,2]
[400366750,1767444640640,-303.08788973,0.00019656,2]
[400366751,1767444640650,-303.08788973,0.00019656,2]
[400366752,1767444640659,-71428.56,0.000197,3]
[400366753,1767444640668,-707.74183356,0.00019726,2]
[400366754,1767444640678,-264.32,0.000198,2]
[400366755,1767444640687,-454.63183459,0.00019845,4]
[400366756,1767444640696,-454.63183459,0.00019845,4]
[400366757,1767444640706,-868.86725822,0.000199,2]
[400366758,1767444640715,-727.03925795,0.000199,2]
[400366759,1767444640724,-528.4,0.00019977,2]
[400366760,1767444640735,-136070.59893153,0.0002,2]
[400366761,1767444640744,-8722.0,0.0002,2]
[400366762,1767444640753,-151.54394486,0.0002,2]
[400366763,1767444640763,-41470.67,0.0002,2]
[400366764,1767444640772,-68166.77765661,0.0002,2]
[400366765,1767444640782,-250.0,0.0002,10]
[400366766,1767444640792,-102848.76764442,0.0002,2]
[400366767,1767444640801,-300.0,0.0002,2]
[400366768,1767444640811,-2000.0,0.0002,7]
[400366769,1767444640820,-170.38573691,0.00020028,30]
[400366770,1767444640830,-454.63183459,0.00020034,4]
[400366771,1767444640839,-454.63183459,0.00020034,4]
[400366772,1767444640848,-250.16,0.000201,2]
[400366773,1767444640858,-253.93,0.000201,2]
[400366774,1767444640867,-2715.16,0.000201,2]
[400366775,1767444640876,-250.0,0.000201,10]
[400366776,1767444640885,-264.32,0.000201,2]
[400366777,1767444640895,-152.42,0.00020115,2]
[400366778,1767444640904,-304.81899385,0.00020115,2]
[400366779,1767444640914,-2069.37795175,0.00020136,2]
[400366780,1767444640924,-170.38573691,0.00020155,30]
[400366781,1767444640933,-253.628271,0.000202,10]
[400366782,1767444640942,-454.63183459,0.00020223,4]
[400366783,1767444640952,-454.63183459,0.00020223,4]
[400366784,1767444640961,-170.38573691,0.00020283,30]
[400366785,1767444640971,-204.0,0.00020329,3]
[400366786,1767444640980,-2069.37795175,0.00020353,2]
[400366787,1767444640989,-500.0,0.00020356,7]
[400366788,1767444640999,-152.42,0.000204,2]
[400366789,1767444641008,-170.38573691,0.0002041,30]
[400366790,1767444641017,-454.63183459,0.00020412,4]
[400366791,1767444641026,-454.63183459,0.00020412,4]
[400366792,1767444641035,-528.4,0.00020483,2]
[400366793,1767444641044,-264.32,0.000205,2]
[400366794,1767444641054,-2000.0,0.000205,7]
[400366795,1767444641063,-170.38573691,0.00020538,30]
[400366796,1767444641072,-330.734172,0.00020548,2]
[400366797,1767444641087,-454.63183459,0.00020601,4]
[400366798,1767444641097,-454.63183459,0.00020601,4]
[400366799,1767444641107,-2069.37795175,0.00020635,2]
[400366800,1767444641116,-170.38573691,0.00020666,30]
[400366801,1767444641126,-548.82967946,0.00020699,2]
[400366802,1767444641135,-4972.57824921,0.00020713,2]
[400366803,1767444641145,-1539.11597168,0.00020776,2]
[400366804,1767444641154,-170.38573691,0.00020793,30]
[400366805,1767444641164,-41470.67,0.000208,2]
[400366806,1767444641174,-264.32,0.000208,2]
[400366807,1767444641185,-1104.030292,0.000208,2]
[400366808,1767444641194,-1104.030292,0.000208,2]
[400366809,1767444641204,-1104.030292,0.000208,2]
[400366810,1767444641214,-1104.030292,0.000208,2]
[400366811,1767444641224,-364.58115,0.000208,2]
[400366812,1767444641234,-364.58115,0.000208,2]
[400366813,1767444641244,-364.58115,0.000208,2]
[400366814,1767444641253,-364.58115,0.000208,2]
[400366815,1767444641263,-142857.12,0.000209,3]
[400366816,1767444641272,-170.38573691,0.00020921,30]
[400366817,1767444641282,-2069.37795176,0.00020963,2]
[400366818,1767444641293,-1005.776843,0.0002098,5]
[400366819,1767444641302,-528.4,0.00020989,2]
[400366820,1767444641311,-197.4008385,0.00020995,2]
[400366821,1767444641321,-169.0178505,0.00020995,2]
[400366822,1767444641331,-1388.1436728,0.00020995,2]
[400366823,1767444641340,-3995.7959374,0.00020995,2]
[400366824,1767444641350,-500.0,0.00021,7]
[400366825,1767444641360,-250.16,0.00021,2]
[400366826,1767444641370,-253.93,0.00021,2]
[400366827,1767444641380,-2715.16,0.00021,2]
[400366828,1767444641391,-1000.0,0.00021,5]
[400366829,1767444641400,-167.67,0.00021,2]
[400366830,1767444641410,-2000.0,0.00021,7]
[400366831,1767444641420,-1000.0,0.0002102,5]
[400366832,1767444641430,-15171.06865329,0.0002102,2]
[400366833,1767444641440,-1000.0,0.0002104,5]
[400366834,1767444641450,-170.38573691,0.00021049,30]
[400366835,1767444641459,-1000.0,0.0002106,5]
[400366836,1767444641469,-1000.0,0.0002108,5]
[400366837,1767444641479,-1000.0,0.000211,5]
[400366838,1767444641489,-264.32,0.000211,2]
[400366839,1767444641499,-501006.52979324,0.0002112,2]
[400366840,1767444641794,-1976.77224746,0.0002112,2]
[400366841,1767444641805,-4594.78762502,0.0002112,2]
[400366842,1767444641940,-1131.63761844,0.0002112,2]
[400366843,1767444641952,-885.16661122,0.0002112,2]
[400366844,1767444641963,-900.0,0.0002112,2]
[400366861,1767444644087,-3560.05144969,0.0002112,2]
[400366863,1767444644099,-4381.53923045,0.0002112,2]
[400366865,1767444644111,-15996.04995251,0.0002112,2]
[400366868,1767444644122,-4082.51093878,0.0002112,2]
[400366872,1767444644161,220.29,0.00011104,2]
[400366889,1767444644574,293.73,0.00011587,2]
[400366890,1767444644792,-272.83182917,0.00015543,2]
[400366893,1767444645095,367.16,0.00012069,2]
[400366910,1767444647099,-440.59,0.00012552,2]
[400366911,1767444647110,-7.2325129,0.00015543,2]
[400366912,1767444647120,-989.3713714,0.00021118,2]
[400366913,1767444647132,-1411.95357189,0.00021118,2]
[400366914,1767444681443,203.92,0.000125,2]
[400366915,1767444722740,169.83,0.00010455,2]
[400366916,1767444723211,226.44,0.0001091,2]
[400366917,1767444723954,283.04,0.00011364,2]
[400366918,1767444724226,339.65,0.00011819,2]
[400366919,1767444724731,395.9661433,0.00012273,2]
[400366920,1767444724758,0.2938567,0.00012273,2]
[400366921,1767444751390,152.27,0.000125,2]
[400366922,1767444797959,154.39,0.00011339,2]
[400366923,1767444798437,192.99,0.00011812,2]
[400366924,1767444798916,231.58,0.00012284,2]
[400366925,1767444864553,9268.4861433,0.00012207,2]
[400366926,1767444864581,10000.01,0.00012207,2]
[400366927,1767444864608,4952.0413399,0.00012207,2]
[400366928,1767444866523,202.88,0.000125,2]
[400366929,1767444871078,156.14,0.00012043,2]
[400366930,1767444871510,187.37,0.00012525,2]
[400366931,1767444932564,150.92,0.000125,2]
[400366932,1767444942194,163.97,0.00011606,2]
[400366933,1767444942712,204.96,0.0001209,2]
[400366934,1767445016570,152.58,0.00011034,2]
[400366935,1767445017056,203.44,0.00011513,2]
[400366936,1767445017530,254.3,0.00011993,2]
[400366937,1767445018032,305.16,0.00012473,2]
[400366938,1767445051507,422.3,0.000125,2]
[400366940,1767445061636,5000.0,0.00012525,2]
[400366941,1767445085804,2798.87,0.00012525,2]
[400366942,1767445085830,2201.13,0.00012525,2]
[400366943,1767445110451,5000.0,0.00012525,2]
[400366944,1767445111258,188.11,0.00010096,2]
[400366945,1767445111675,282.16,0.00010554,2]
[400366946,1767445112170,376.21,0.00011013,2]
[400366947,1767445112673,470.27,0.00011472,2]
[400366948,1767445113149,564.32,0.00011931,2]
[400366949,1767445114724,658.38,0.0001239,2]
[400366950,1767445134816,259.43,0.00012525,2]
[400366951,1767445134840,4740.57,0.00012525,2]
[400366952,1767445160191,5000.0,0.00012525,2]
[400366953,1767445171056,168.45,0.000125,2]
[400366954,1767445184279,90.99,0.00012525,2]
[400366955,1767445184306,4909.01,0.00012525,2]
[400366956,1767445188721,203.84,0.0001014,2]
[400366957,1767445189125,305.76,0.00010601,2]
[400366958,1767445190009,407.68,0.00011062,2]
[400366959,1767445190400,509.6,0.00011523,2]
[400366960,1767445190927,611.52,0.00011984,2]
[400366961,1767445191400,713.44,0.00012445,2]
[400366962,1767445198489,517.74,0.00012329,2]
[400366963,1767445208904,1821.42,0.00012525,2]
[400366964,1767445208933,3178.58,0.00012525,2]
[400366965,1767445233380,5000.0,0.00012525,2]
[400366967,1767445258288,551.5984217,0.00012525,2]
[400366968,1767445267406,200.69,0.00010587,2]
[400366969,1767445267878,267.58,0.00011047,2]
[400366970,1767445268536,334.48,0.00011507,2]
[400366971,1767445269017,401.38,0.00011967,2]
[400366972,1767445269557,65.7015783,0.00012428,2]
[400366973,1767445269583,402.5684217,0.00012428,2]
[400366974,1767445282046,3097.00629249,0.0001252,2]
[400366975,1767445290971,424.79,0.000124,2]
[400366976,1767445306655,1902.99370751,0.0001252,2]
[400366977,1767445343359,179.33,0.00010094,2]
[400366978,1767445343844,268.99,0.00010553,2]
[400366979,1767445344330,358.66,0.00011012,2]
[400366980,1767445344847,448.32,0.00011471,2]
[400366981,1767445345312,537.99,0.0001193,2]
[400366982,1767445345984,627.65,0.00012389,2]
[400366983,1767445414064,173.58,0.000124,2]
[400366984,1767445421514,161.76,0.00010107,2]
[400366985,1767445421978,242.64,0.00010566,2]
[400366986,1767445422372,323.52,0.00011026,2]
[400366987,1767445422870,404.39,0.00011485,2]
[400366988,1767445423373,445.8215783,0.00011944,2]
[400366989,1767445423398,39.4484217,0.00011944,2]
[400366990,1767445423823,566.15,0.00012404,2]
[400366991,1767445449486,2905.03629249,0.00012441,2]
[400366992,1767445475905,2094.96370751,0.00012441,2]
[400366993,1767445501139,159.26,0.00010478,2]
[400366994,1767445501632,212.34,0.00010934,2]
[400366995,1767445502116,265.43,0.0001139,2]
[400366996,1767445502594,318.52,0.00011845,2]
[400366997,1767445503210,371.6,0.00012301,2]
[400366999,1767445523224,3067.2615783,0.00012441,2]
[400367000,1767445523252,1932.7384217,0.00012441,2]
[400367001,1767445532209,419.77,0.000124,2]
[400367012,1767445548381,5000.0,0.00012441,2]
[400367013,1767445577151,179.32,0.00010084,2]
[400367014,1767445577573,268.98,0.00010542,2]
[400367015,1767445578051,358.64,0.00011001,2]
[400367016,1767445578519,448.3,0.00011459,2]
[400367017,1767445579009,537.96,0.00011917,2]
[400367018,1767445587891,-388.65574877,0.00012376,2]
[400367019,1767445594055,-238.96425123,0.00012376,2]
[400367020,1767445595664,967.81337959,0.00012221,2]
[400367050,1767445656633,160.47,0.00010082,2]
[400367051,1767445657223,240.7,0.0001054,2]
[400367052,1767445657716,320.94,0.00010999,2]
[400367053,1767445658120,401.17,0.00011457,2]
[400367054,1767445658582,-188.95,0.000122,2]
[400367055,1767445658710,481.41,0.00011915,2]